fUSD/lending_fUSD_20241225
["ID","MTS","AMOUNT","RATE_DAILY","PERIOD"]
[346593854,1735121462612,-1283.79,0.00010196,2]
[346593855,1735121462623,-877.49,0.00010196,2]
[346593856,1735121462633,-1508.82,0.00010196,2]
[346593857,1735121462643,-500.0,0.00010196,2]
[346593858,1735121462652,-1554.05,0.00010196,2]
[346593859,1735121462662,-500.0,0.00010196,2]
[346593860,1735121462672,-978.36,0.00010196,2]
[346593861,1735121462682,-662.42,0.00010196,2]
[346593862,1735121462691,-783.59,0.00010196,2]
[346593863,1735121462701,-1337.89,0.00010196,2]
[346593864,1735121462710,-756.05,0.00010196,2]
[346593865,1735121462719,-1322.28,0.00010196,2]
[346593866,1735121462728,-769.14,0.00010196,2]
[346593867,1735121462738,-151.0,0.00010196,2]
[346593868,1735121462747,-2479.6,0.00010196,2]
[346593869,1735121462756,-1468.56,0.00010196,2]
[346593870,1735121462766,-560.03,0.00010196,2]
[346593871,1735121462775,-769.15,0.00010196,2]
[346593872,1735121462785,-920.74,0.00010196,2]
[346593873,1735121462794,-2344.16,0.00010196,2]
[346593874,1735121462803,-1805.59,0.00010196,2]
[346593875,1735121462812,-504.67,0.00010196,2]
[346593876,1735121462822,-1997.26,0.00010196,2]
[346593877,1735121462831,-151.969522,0.00010196,2]
[346593878,1735121462841,-1613.18,0.00010196,2]
[346593879,1735121462850,-666.36,0.00010196,2]
[346593880,1735121462859,-1498.09,0.00010196,2]
[346593881,1735121462869,-1943.67,0.00010196,2]
[346593882,1735121462878,-1876.64,0.00010196,2]
[346593883,1735121462887,-1700.79,0.00010196,2]
[346593884,1735121462897,-1640.81,0.00010196,2]
[346593885,1735121462907,-1682.31,0.00010196,2]
[346593886,1735121462916,-8293.61,0.00010196,2]
[346593887,1735121462926,-3527.51,0.00010196,2]
[346593888,1735121462935,-500.0,0.00010196,2]
[346593889,1735121462945,-3060.42,0.00010196,2]
[346593890,1735121462954,-851.79,0.00010196,2]
[346593891,1735121462963,-6706.68,0.00010196,2]
[346593892,1735121462973,-1374.29,0.00010196,2]
[346593893,1735121462982,-2619.72,0.00010196,2]
[346593894,1735121462992,-693.15,0.00010196,2]
[346593895,1735121463001,-693.15,0.00010196,2]
[346593896,1735121463011,-3932.48,0.00010196,2]
[346593897,1735121463022,-1374.79,0.00010196,2]
[346593898,1735121463031,-2299.23,0.00010196,2]
[346593899,1735121463041,-4634.96,0.00010196,2]
[346593900,1735121463050,-3006.95,0.00010196,2]
[346593901,1735121463060,-1326.72,0.00010196,2]
[346593902,1735121463069,-888.61,0.00010196,2]
[346593903,1735121463220,-500.0,0.00010196,2]
[346593904,1735121463246,-9073.58,0.00010196,2]
[346593905,1735121463256,-1921.57,0.00010196,2]
[346593906,1735121463266,-53692.15,0.00010196,2]
[346593907,1735121463275,-1503.02,0.00010196,2]
[346593908,1735121463285,-1358.91,0.00010196,2]
[346593909,1735121463294,-7360.32,0.00010196,2]
[346593910,1735121463304,-2968.25,0.00010196,2]
[346593911,1735121463314,-4009.21,0.00010196,2]
[346593912,1735121463324,-2044.42,0.00010196,2]
[346593913,1735121463334,-2747.14,0.00010196,2]
[346593914,1735121463345,-1627.45,0.00010196,2]
[346593915,1735121463355,-3457.91,0.00010196,2]
[346593916,1735121463365,-1267.13,0.00010196,2]
[346593917,1735121463375,-5671.23,0.00010196,2]
[346593918,1735121463384,-500.0,0.00010196,2]
[346593919,1735121463395,-20535.4,0.00010196,2]
[346593920,1735121463404,-1689.17,0.00010196,2]
[346593921,1735121463414,-802.01,0.00010196,2]
[346593922,1735121463424,-1583.26,0.00010196,2]
[346593923,1735121463433,-3634.08,0.00010196,2]
[346593924,1735121463444,-3070.63,0.00010196,2]
[346593925,1735121463454,-1166.31,0.00010196,2]
[346593926,1735121463464,-1206.91,0.00010196,2]
[346593927,1735121463474,-2467.73,0.00010196,2]
[346593928,1735121463484,-935.87,0.00010196,2]
[346593929,1735121463493,-500.0,0.00010196,2]
[346593930,1735121463504,-9044.59,0.00010196,2]
[346593931,1735121463514,-151.0,0.00010196,2]
[346593932,1735121463523,-1862.97,0.00010196,2]
[346593933,1735121463533,-1585.87,0.00010196,2]
[346593934,1735121463543,-1772.41,0.00010196,2]
[346593935,1735121463553,-1245.6,0.00010196,2]
[346593936,1735121463564,-3339.8,0.00010196,2]
[346593937,1735121463575,-2262.02,0.00010196,2]
[346593938,1735121463588,-2692.77,0.00010196,2]
[346593939,1735121463598,-2972.23,0.00010196,2]
[346593940,1735121463608,-500.0,0.00010197,2]
[346593941,1735121463619,-500.0,0.00010197,2]
[346593942,1735121463631,-606.96380816,0.00010197,2]
[346593943,1735121463640,-290.23641098,0.00010197,2]
[346593944,1735121463650,-503.41434408,0.00010197,2]
[346593945,1735121463662,-500.0,0.00010197,2]
[346593946,1735121463672,-500.0,0.00010197,2]
[346593947,1735121463681,-500.0,0.00010197,2]
[346593948,1735121463691,-500.0,0.00010197,2]
[346593949,1735121463701,-500.0,0.00010197,2]
[346593950,1735121463710,-500.0,0.00010197,2]
[346593951,1735121463720,-500.0,0.00010197,2]
[346593952,1735121463729,-500.0,0.00010197,2]
[346593953,1735121463739,-500.0,0.00010197,2]
[346593954,1735121463748,-500.0,0.00010197,2]
[346593955,1735121463758,-500.0,0.00010197,2]
[346593956,1735121463767,-641.71,0.00010197,2]
[346593957,1735121463777,-754.77,0.00010197,2]
[346593958,1735121463786,-500.0,0.00010197,2]
[346593959,1735121463796,-518.89,0.00010197,2]
[346593960,1735121463805,-500.0,0.00010197,2]
[346593961,1735121463815,-517.81296516,0.00010197,2]
[346593962,1735121463825,-833.33,0.00010197,2]
[346593963,1735121463836,-500.0,0.00010197,2]
[346593964,1735121463845,-500.0,0.00010197,2]
[346593965,1735121463855,-500.0,0.00010197,2]
[346593966,1735121463865,-500.0,0.00010197,2]
[346593967,1735121463875,-500.0,0.00010197,2]
[346593968,1735121463884,-500.0,0.00010197,2]
[346593969,1735121463894,-1035.88,0.00010197,2]
[346593970,1735121463905,-500.0,0.00010197,2]
[346593971,1735121463915,-1283.86,0.00010197,2]
[346593972,1735121463925,-500.0,0.00010197,2]
[346593973,1735121463935,-500.0,0.00010197,2]
[346593974,1735121463945,-1773.8,0.00010197,2]
[346593975,1735121463955,-614.02,0.00010197,2]
[346593976,1735121463965,-500.0,0.00010197,2]
[346593977,1735121463975,-500.0,0.00010197,2]
[346593978,1735121463984,-500.0,0.00010197,2]
[346593979,1735121463994,-500.0,0.00010197,2]
[346593980,1735121464004,-860.33,0.00010197,2]
[346593981,1735121464013,-500.0,0.00010197,2]
[346593982,1735121464022,-500.0,0.00010197,2]
[346593983,1735121464031,-526.28341321,0.00010197,2]
[346593984,1735121464040,-500.0,0.00010197,2]
[346593985,1735121464050,-569.32,0.00010197,2]
[346593986,1735121464059,-764.7,0.00010197,2]
[346593987,1735121464069,-500.0,0.00010197,2]
[346593988,1735121464079,-500.0,0.00010197,2]
[346593989,1735121464088,-1260.5,0.00010197,2]
[346593990,1735121464098,-500.0,0.00010197,2]
[346593991,1735121464107,-1019.49,0.00010197,2]
[346593992,1735121464117,-699.0,0.00010197,2]
[346593993,1735121464126,-533.88091737,0.00010197,2]
[346593994,1735121464137,-672.84,0.00010197,2]
[346593995,1735121464147,-500.0,0.00010197,2]
[346593996,1735121464156,-528.2607824,0.00010197,2]
[346593997,1735121464166,-1504.08,0.00010197,2]
[346593998,1735121464176,-1418.39,0.00010197,2]
[346593999,1735121464186,-621.69,0.00010197,2]
[346594000,1735121464196,-688.96,0.00010197,2]
[346594001,1735121464205,-589.29,0.00010197,2]
[346594002,1735121464215,-500.0,0.00010197,2]
[346594003,1735121464225,-500.0,0.00010197,2]
[346594004,1735121464234,-195.10305265,0.00010197,2]
[346594005,1735121464243,-500.0,0.00010197,2]
[346594006,1735121464253,-500.0,0.00010197,2]
[346594007,1735121464262,-500.0,0.00010197,2]
[346594008,1735121464272,-500.0,0.00010197,2]
[346594009,1735121464282,-500.0,0.00010197,2]
[346594010,1735121464292,-500.0,0.00010197,2]
[346594011,1735121464302,-538.38,0.00010197,2]
[346594012,1735121464312,-500.0,0.00010197,2]
[346594013,1735121464322,-500.0,0.00010197,2]
[346594014,1735121464333,-500.0,0.00010197,2]
[346594015,1735121464343,-500.0,0.00010197,2]
[346594016,1735121464353,-1567.43,0.00010197,2]
[346594017,1735121464363,-785.09,0.00010197,2]
[346594018,1735121464372,-445.0691028,0.00010197,2]
[346594019,1735121464382,-500.0,0.00010197,2]
[346594020,1735121464391,-500.0,0.00010197,2]
[346594021,1735121464401,-500.0,0.00010197,2]
[346594022,1735121464411,-3424.27,0.00010197,2]
[346594023,1735121464421,-500.0,0.00010197,2]
[346594024,1735121464431,-500.0,0.00010197,2]
[346594025,1735121464440,-500.0,0.00010197,2]
[346594026,1735121464458,-3150.72,0.00010197,2]
[346594027,1735121464468,-996.19,0.00010197,2]
[346594028,1735121464478,-500.0,0.00010197,2]
[346594029,1735121464488,-1011.13,0.00010197,2]
[346594030,1735121464501,-500.0,0.00010197,2]
[346594031,1735121464511,-500.0,0.00010197,2]
[346594032,1735121464521,-797.8,0.00010197,2]
[346594033,1735121464535,-500.0,0.00010197,2]
[346594034,1735121464548,-500.0,0.00010197,2]
[346594035,1735121464559,-622.07,0.00010197,2]
[346594036,1735121464570,-836.61,0.00010197,2]
[346594037,1735121464581,-1525.99,0.00010197,2]
[346594038,1735121464593,-500.0,0.00010197,2]
[346594039,1735121464603,-500.0,0.00010197,2]
[346594040,1735121464614,-500.0,0.00010197,2]
[346594041,1735121464627,-500.0,0.00010197,2]
[346594042,1735121464637,-500.0,0.00010197,2]
[346594043,1735121464648,-500.0,0.00010197,2]
[346594044,1735121464662,-503.60555263,0.00010197,2]
[346594045,1735121464673,-500.0,0.00010197,2]
[346594046,1735121464682,-500.0,0.00010197,2]
[346594047,1735121464692,-1664.1,0.00010197,2]
[346594048,1735121464702,-832.11,0.00010197,2]
[346594049,1735121464711,-625.98,0.00010197,2]
[346594050,1735121464721,-500.0,0.00010197,2]
[346594051,1735121464730,-500.0,0.00010197,2]
[346594052,1735121464740,-609.36,0.00010197,2]
[346594053,1735121464750,-1579.22,0.00010197,2]
[346594054,1735121464760,-667.35,0.00010197,2]
[346594055,1735121464769,-500.0,0.00010197,2]
[346594056,1735121464779,-500.0,0.00010197,2]
[346594057,1735121464788,-500.0,0.00010197,2]
[346594058,1735121464798,-1634.64,0.00010197,2]
[346594059,1735121464807,-500.0,0.00010197,2]
[346594060,1735121464816,-1076.86,0.00010197,2]
[346594061,1735121464827,-620.97,0.00010197,2]
[346594062,1735121464836,-500.0,0.00010197,2]
[346594063,1735121464846,-811.35,0.00010197,2]
[346594064,1735121464855,-1068.35,0.00010197,2]
[346594065,1735121464864,-2333.75,0.00010197,2]
[346594066,1735121464873,-521.14853747,0.00010197,2]
[346594067,1735121464882,-500.0,0.00010197,2]
[346594068,1735121464892,-1911.61,0.00010197,2]
[346594069,1735121464901,-606.76,0.00010197,2]
[346594070,1735121464910,-1683.53,0.00010197,2]
[346594071,1735121464919,-500.0,0.00010197,2]
[346594072,1735121464929,-500.0,0.00010197,2]
[346594073,1735121464938,-500.0,0.00010197,2]
[346594074,1735121464947,-1524.63,0.00010197,2]
[346594075,1735121464957,-500.0,0.00010197,2]
[346594076,1735121464966,-500.0,0.00010197,2]
[346594077,1735121464975,-500.0,0.00010197,2]
[346594078,1735121464984,-500.0,0.00010197,2]
[346594079,1735121464993,-500.0,0.00010197,2]
[346594080,1735121465003,-500.0,0.00010197,2]
[346594081,1735121465012,-500.0,0.00010197,2]
[346594082,1735121465021,-1449.36,0.00010197,2]
[346594083,1735121465030,-500.0,0.00010197,2]
[346594084,1735121465040,-500.0,0.00010197,2]
[346594085,1735121465050,-509.98667882,0.00010197,2]
[346594086,1735121465059,-263.38355225,0.00010197,2]
[346594087,1735121465068,-696.05,0.00010197,2]
[346594088,1735121465078,-500.0,0.00010197,2]
[346594089,1735121465087,-500.0,0.00010197,2]
[346594090,1735121465096,-2347.52,0.00010197,2]
[346594091,1735121465105,-453.04814283,0.00010197,2]
[346594092,1735121465116,-500.0,0.00010197,2]
[346594093,1735121465125,-500.0,0.00010197,2]
[346594094,1735121465134,-1661.27,0.00010197,2]
[346594095,1735121465143,-500.0,0.00010197,2]
[346594096,1735121465152,-590.1420653,0.00010197,2]
[346594097,1735121465162,-2073.3,0.00010197,2]
[346594098,1735121465171,-1568.5,0.00010197,2]
[346594099,1735121465180,-1919.63,0.00010197,2]
[346594100,1735121465189,-500.0,0.00010197,2]
[346594101,1735121465198,-500.0,0.00010197,2]
[346594102,1735121465207,-500.0,0.00010197,2]
[346594103,1735121465216,-743.39,0.00010197,2]
[346594104,1735121465226,-500.0,0.00010197,2]
[346594105,1735121465235,-500.0,0.00010197,2]
[346594106,1735121465245,-1714.75,0.00010197,2]
[346594107,1735121465255,-500.0,0.00010197,2]
[346594108,1735121465265,-1513.98,0.00010197,2]
[346594109,1735121465274,-541.18,0.00010197,2]
[346594110,1735121465284,-500.0,0.00010197,2]
[346594111,1735121465293,-2338.6,0.00010197,2]
[346594112,1735121465303,-500.0,0.00010197,2]
[346594113,1735121465312,-1225.73,0.00010197,2]
[346594114,1735121465322,-500.0,0.00010197,2]
[346594115,1735121465331,-1375.41,0.00010197,2]
[346594116,1735121465340,-500.0,0.00010197,2]
[346594117,1735121465350,-1366.16,0.00010197,2]
[346594118,1735121465359,-500.0,0.00010197,2]
[346594119,1735121465368,-1639.91,0.00010197,2]
[346594120,1735121465378,-500.0,0.00010197,2]
[346594121,1735121465387,-1955.96,0.00010197,2]
[346594122,1735121465396,-150.0,0.00010197,2]
[346594123,1735121465406,-500.0,0.00010197,2]
[346594124,1735121465416,-3499.5,0.00010197,2]
[346594125,1735121465425,-500.0,0.00010197,2]
[346594126,1735121465435,-1188.38,0.00010197,2]
[346594127,1735121465444,-2040.95,0.00010197,2]
[346594128,1735121465592,-500.0,0.00010197,2]
[346594129,1735121465602,-500.0,0.00010197,2]
[346594130,1735121465613,-1523.86,0.00010197,2]
[346594131,1735121465622,-500.0,0.00010197,2]
[346594132,1735121465633,-655.0,0.00010197,2]
[346594133,1735121465642,-1715.1,0.00010197,2]
[346594134,1735121465652,-500.0,0.00010197,2]
[346594135,1735121465663,-828.33,0.00010197,2]
[346594136,1735121465674,-1761.89,0.00010197,2]
[346594137,1735121465683,-500.0,0.00010197,2]
[346594138,1735121465692,-725.82,0.00010197,2]
[346594139,1735121465702,-974.92,0.00010197,2]
[346594140,1735121465711,-500.0,0.00010197,2]
[346594141,1735121465720,-3784.25,0.00010197,2]
[346594142,1735121465730,-500.0,0.00010197,2]
[346594143,1735121465739,-458.64991742,0.00010197,2]
[346594144,1735121465750,-1730.82,0.00010197,2]
[346594145,1735121465759,-2149.07,0.00010197,2]
[346594146,1735121465769,-500.0,0.00010197,2]
[346594147,1735121465779,-500.0,0.00010197,2]
[346594148,1735121465788,-3627.76,0.00010197,2]
[346594149,1735121465798,-500.0,0.00010197,2]
[346594150,1735121465807,-823.52,0.00010197,2]
[346594151,1735121465817,-1031.22,0.00010197,2]
[346594152,1735121465826,-776.3,0.00010197,2]
[346594153,1735121465836,-693.15,0.00010197,2]
[346594154,1735121465845,-1075.53,0.00010197,2]
[346594155,1735121465855,-500.0,0.00010197,2]
[346594156,1735121465865,-531.14,0.00010197,2]
[346594157,1735121465874,-1124.68,0.00010197,2]
[346594158,1735121465883,-3422.6,0.00010197,2]
[346594159,1735121465893,-500.0,0.00010197,2]
[346594160,1735121465902,-712.14,0.00010197,2]
[346594161,1735121465911,-1224.79,0.00010197,2]
[346594162,1735121465920,-500.0,0.00010197,2]
[346594163,1735121465930,-1720.58,0.00010197,2]
[346594164,1735121465940,-746.16,0.00010197,2]
[346594165,1735121465949,-500.0,0.00010197,2]
[346594166,1735121465959,-500.0,0.00010197,2]
[346594167,1735121465968,-739.25,0.00010197,2]
[346594168,1735121465978,-1480.91,0.00010197,2]
[346594169,1735121465987,-500.0,0.00010197,2]
[346594170,1735121465997,-769.51,0.00010197,2]
[346594171,1735121466007,-500.0,0.00010197,2]
[346594172,1735121466016,-924.98,0.00010197,2]
[346594173,1735121466025,-500.0,0.00010197,2]
[346594174,1735121466034,-2221.08,0.00010197,2]
[346594175,1735121466043,-500.0,0.00010197,2]
[346594176,1735121466054,-500.0,0.00010197,2]
[346594177,1735121466063,-500.0,0.00010197,2]
[346594178,1735121466073,-977.04,0.00010197,2]
[346594179,1735121466082,-1542.9,0.00010197,2]
[346594180,1735121466092,-520.76,0.00010197,2]
[346594181,1735121466102,-1452.09,0.00010197,2]
[346594182,1735121466111,-500.0,0.00010197,2]
[346594183,1735121466120,-500.0,0.00010197,2]
[346594184,1735121466131,-500.0,0.00010197,2]
[346594185,1735121466141,-1363.46,0.00010197,2]
[346594186,1735121466151,-780.78,0.00010197,2]
[346594187,1735121466161,-500.0,0.00010197,2]
[346594188,1735121466170,-1020.34,0.00010197,2]
[346594189,1735121466180,-500.0,0.00010197,2]
[346594190,1735121466190,-500.0,0.00010197,2]
[346594191,1735121466199,-979.88,0.00010197,2]
[346594192,1735121466209,-500.0,0.00010197,2]
[346594193,1735121466224,-500.0,0.00010197,2]
[346594194,1735121466235,-500.0,0.00010197,2]
[346594195,1735121466244,-656.77,0.00010197,2]
[346594196,1735121466254,-1057.62,0.00010197,2]
[346594197,1735121466263,-500.0,0.00010197,2]
[346594198,1735121466277,-500.0,0.00010197,2]
[346594199,1735121466287,-500.0,0.00010197,2]
[346594200,1735121466296,-709.78,0.00010197,2]
[346594201,1735121466307,-500.0,0.00010198,2]
[346594202,1735121466317,-639.34,0.00010198,2]
[346594203,1735121466327,-500.0,0.00010198,2]
[346594204,1735121466336,-500.0,0.00010198,2]
[346594205,1735121466346,-556.08,0.00010198,2]
[346594206,1735121466356,-500.0,0.00010198,2]
[346594207,1735121466365,-598.66,0.00010198,2]
[346594208,1735121466375,-1344.15,0.00010198,2]
[346594209,1735121466385,-500.0,0.00010198,2]
[346594210,1735121466395,-500.0,0.00010198,2]
[346594211,1735121466405,-1016.93,0.00010198,2]
[346594212,1735121466415,-500.46,0.00010198,2]
[346594213,1735121466425,-500.0,0.00010198,2]
[346594214,1735121466435,-1001.48,0.00010198,2]
[346594215,1735121466445,-976.85,0.00010198,2]
[346594216,1735121466455,-500.0,0.00010198,2]
[346594217,1735121466464,-500.0,0.00010198,2]
[346594218,1735121466474,-150.0,0.00010198,2]
[346594219,1735121466484,-500.0,0.00010198,2]
[346594220,1735121466493,-980.1,0.00010198,2]
[346594221,1735121466503,-500.0,0.00010198,2]
[346594222,1735121466513,-837.36,0.00010198,2]
[346594223,1735121466523,-568.88,0.00010198,2]
[346594224,1735121466533,-500.0,0.00010198,2]
[346594225,1735121466542,-500.0,0.00010198,2]
[346594226,1735121466552,-500.0,0.00010198,2]
[346594227,1735121466562,-500.0,0.00010198,2]
[346594228,1735121466571,-500.0,0.00010198,2]
[346594229,1735121466584,-500.0,0.00010198,2]
[346594230,1735121466594,-500.0,0.00010198,2]
[346594231,1735121466610,-705.3,0.00010198,2]
[346594232,1735121466630,-500.0,0.00010198,2]
[346594233,1735121466648,-1242.55,0.00010198,2]
[346594234,1735121466669,-500.0,0.00010198,2]
[346594235,1735121466684,-500.0,0.00010198,2]
[346594236,1735121466702,-1248.3,0.00010198,2]
[346594237,1735121466722,-500.0,0.00010198,2]
[346594238,1735121466753,-691.21,0.00010198,2]
[346594239,1735121466773,-500.0,0.00010198,2]
[346594240,1735121466793,-1652.81,0.00010198,2]
[346594241,1735121466812,-500.0,0.00010198,2]
[346594242,1735121466828,-500.0,0.00010198,2]
[346594243,1735121466845,-584.14,0.00010198,2]
[346594244,1735121466861,-150.0,0.00010203,2]
[346594245,1735121466877,-150.0,0.00010205,2]
[346594246,1735121466895,-150.0,0.00010206,2]
[346594247,1735121466911,-150.0,0.00010208,2]
[346594248,1735121466927,-150.0,0.00010208,2]
[346594249,1735121466942,-150.0,0.00010208,2]
[346594250,1735121466958,-150.0,0.00010213,2]
[346594251,1735121466973,-150.85780981,0.00010214,2]
[346594252,1735121466988,-150.0,0.00010222,2]
[346594253,1735121467003,-150.0,0.00010223,2]
[346594254,1735121467018,-388.23,0.00010223,2]
[346594255,1735121467033,-150.0,0.00010225,2]
[346594256,1735121467049,-150.0,0.00010226,2]
[346594257,1735121467064,-150.0,0.00010228,2]
[346594258,1735121467080,-150.0,0.00010231,2]
[346594259,1735121467094,-150.0,0.00010232,2]
[346594260,1735121467108,-1500.0,0.00010236,2]
[346594261,1735121467122,-150.0,0.00010238,2]
[346594262,1735121467137,-1500.0,0.0001024,2]
[346594263,1735121467152,-150.0,0.00010247,2]
[346594264,1735121467167,-150.0,0.00010248,2]
[346594265,1735121467183,-150.0,0.0001025,2]
[346594266,1735121467197,-150.0,0.00010254,2]
[346594267,1735121467213,-150.0,0.00010254,2]
[346594268,1735121467231,-150.0,0.00010262,2]
[346594269,1735121467255,-150.0,0.00010268,2]
[346594270,1735121467270,-1500.0,0.0001027,2]
[346594271,1735121467284,-150.0,0.00010275,2]
[346594272,1735121467300,-150.0,0.00010281,2]
[346594273,1735121467314,-150.0,0.00010284,2]
[346594274,1735121467329,-150.0,0.00010285,2]
[346594275,1735121467344,-150.0,0.00010287,2]
[346594276,1735121467359,-150.0,0.00010288,2]
[346594277,1735121467378,-150.0,0.0001029,2]
[346594278,1735121467393,-150.0,0.00010291,2]
[346594279,1735121467408,-150.0,0.00010293,2]
[346594280,1735121467423,-150.0,0.00010294,2]
[346594281,1735121467438,-150.0,0.00010296,2]
[346594282,1735121467453,-150.0,0.00010296,2]
[346594283,1735121467469,-150.0,0.00010296,2]
[346594284,1735121467493,-150.0,0.00010298,2]
[346594285,1735121467508,-150.0,0.00010301,2]
[346594286,1735121467523,-150.0,0.00010301,2]
[346594287,1735121467538,-150.0,0.00010309,2]
[346594288,1735121467553,-150.0,0.00010315,2]
[346594289,1735121467570,-150.0,0.00010319,2]
[346594290,1735121467587,-1082.873722,0.00010323,2]
[346594291,1735121467602,-150.0,0.00010324,2]
[346594292,1735121467617,-4702.1872132,0.00010325,2]
[346594293,1735121467632,-769.51,0.00010325,2]
[346594294,1735121467647,-150.0,0.00010326,2]
[346594295,1735121467663,-769.51,0.00010327,2]
[346594296,1735121467678,-150.0,0.00010328,2]
[346594297,1735121467693,-769.51,0.00010328,2]
[346594298,1735121467708,-200.0,0.00010329,2]
[346594299,1735121467722,-200.0,0.00010329,2]
[346594300,1735121467743,-2000.0,0.00010329,2]
[346594301,1735121467758,-200.0,0.00010329,2]
[346594302,1735121467773,-500.0,0.00010333,2]
[346594303,1735121467789,-313.99927278,0.0001037,2]
[346594304,1735121467804,-6538.33955311,0.0001037,2]
[346594305,1735121467819,-429.10429252,0.00010403,2]
[346594306,1735121467834,-1233.25,0.00010427,2]
[346594307,1735121467849,-200.0,0.00010432,2]
[346594308,1735121467863,-2000.0,0.00010432,2]
[346594309,1735121467878,-200.0,0.00010432,2]
[346594310,1735121467893,-54718.0,0.00010438,2]
[346594311,1735121467907,-693.15,0.00010443,2]
[346594312,1735121467922,-13026.0651849,0.00010444,2]
[346594313,1735121467937,-1246.76,0.00010468,2]
[346594314,1735121467951,-1033.66,0.00010468,2]
[346594315,1735121467966,-500.0,0.00010468,2]
[346594316,1735121467983,-1172.34,0.00010468,2]
[346594317,1735121467998,-694.38,0.00010468,2]
[346594318,1735121468013,-881.0,0.00010468,2]
[346594319,1735121468029,-599.08,0.00010468,2]
[346594320,1735121468044,-13394.14,0.00010468,2]
[346594321,1735121468059,-2786.16,0.00010468,2]
[346594322,1735121468075,-1903.24,0.00010468,2]
[346594323,1735121468090,-1462.27,0.00010468,2]
[346594324,1735121468105,-2074.85,0.00010468,2]
[346594325,1735121468120,-4376.75,0.00010468,2]
[346594326,1735121468136,-756.55,0.00010468,2]
[346594327,1735121468150,-3657.39,0.00010468,2]
[346594328,1735121468165,-4051.51,0.00010468,2]
[346594329,1735121468181,-1906.69,0.00010468,2]
[346594330,1735121468197,-1159.21,0.00010468,2]
[346594331,1735121468213,-516.16,0.00010468,2]
[346594332,1735121468228,-11085.49,0.00010468,2]
[346594333,1735121468247,-508.06,0.00010468,2]
[346594334,1735121468264,-1283.63,0.00010468,2]
[346594335,1735121468490,-500.0,0.00010468,2]
[346594336,1735121468503,-2472.66,0.00010468,2]
[346594337,1735121468513,-1443.23,0.00010468,2]
[346594338,1735121468523,-1540.35,0.00010468,2]
[346594339,1735121468532,-500.0,0.00010468,2]
[346594340,1735121468542,-870.83,0.00010468,2]
[346594341,1735121468551,-1453.43,0.00010468,2]
[346594342,1735121468562,-1025.38,0.00010468,2]
[346594343,1735121468572,-500.0,0.00010468,2]
[346594344,1735121468583,-2432.06,0.00010468,2]
[346594345,1735121468593,-500.0,0.00010469,2]
[346594346,1735121468603,-500.0,0.00010469,2]
[346594347,1735121468612,-500.0,0.00010469,2]
[346594348,1735121468623,-500.0,0.00010469,2]
[346594349,1735121468632,-737.01,0.00010469,2]
[346594350,1735121468641,-500.0,0.00010469,2]
[346594351,1735121468650,-500.0,0.00010469,2]
[346594352,1735121468661,-500.0,0.00010469,2]
[346594353,1735121468670,-500.0,0.00010469,2]